Cogmind - Beta 13 @@@ ROGUE MODE // 2024.04.06 @ 00:36:48 Player: KingStarKing Result: Smashed by cave-in Performance ------------- Evolutions (2) 1000 Regions Visited (6) 1200 Robots Destroyed (105) 525 Value Destroyed (2974) 2974 Prototype IDs (2) 40 Alien Tech Used (0) 0 Bonus (683) 683 TOTAL SCORE: 6422 Bonus ------- High Alert Combat Kills 344 Follower Combat Kills 39 Aligned with FarCom 300 Cogmind --------- Core Integrity 0/550 Matter 300/300 Energy 224/265 System Corruption 7% Temperature Cool (2) Movement Walking (190) Ox1 Location -8/Storage Parts ------- > --- POWER (1) -------- Improved Ion Engine > --- PROPULSION (4) --- Light Treads Light Treads Aluminum Leg Carbon-fiber Leg > --- UTILITY (4) ------ Improved Heat Sink Large Storage Unit Visual Processing Unit > --- WEAPON (2) ------- Gauss Rifle > --- INVENTORY (15) --- Aluminum Leg VTOL Module VTOL Module Cryofiber Web Improved Heat Sink Compact Matter Pod (150) Particle Charger Reaction Control System Improved Propulsion Shielding Hardened Medium Armor Plating Hardlight Generator Recalibrator Particle Gun Beamcaster Heavy Particle Cannon Peak State ------------ > --- POWER ------------ Light Nuclear Core > --- PROPULSION ------- Improved Carbon-fiber Leg Improved Carbon-fiber Leg Improved Carbon-fiber Leg Improved Carbon-fiber Leg > --- UTILITY ---------- Large Storage Unit Visual Processing Unit ECM Suite Hardened Medium Armor Plating > --- WEAPON ----------- Beamcaster Longsword +1 > --- INVENTORY -------- Light Nuclear Core Light Nuclear Core Light Nuclear Core Aluminum Leg Carbon-fiber Leg VTOL Module VTOL Module VTOL Module Improved Heat Sink Improved Heat Sink Improved Heat Sink Small Storage Unit Core Shielding [Rating: 42] Favorites ----------- Power Light Nuclear Core Engine Light Angular Momentum Engine Power Core Light Nuclear Core Propulsion Improved Carbon-fiber Leg Treads Light Treads Leg Improved Carbon-fiber Leg Flight Unit VTOL Module Utility Large Storage Unit Device ECM Suite Storage Large Storage Unit Processor Visual Processing Unit Hackware Hacking Suite Protection Core Shielding Weapon Beamcaster Energy Gun Beamcaster Energy Cannon Heavy Particle Cannon Ballistic Gun Assault Rifle Ballistic Cannon Light Cannon Launcher Heavy Missile Launcher Slashing Weapon Longsword +1 Build | -11 -10 -10 -10 -9 -8 -8 ------- Run | Yrd Mat Min Exi Min Mat Sto Slots Evolved 4 | . . . . . 4 . Power . | . . . . . . . Propulsion 2 | . . . . . 2 . Utility 2 | . . . . . 2 . Weapon . | . . . . . . . Parts Attached 87 | 6 5 6 . 7 34 29 Power 14 | . 2 2 . 1 2 7 Engine 7 | . 2 2 . 1 1 1 Core 7 | . . . . . 1 6 Reactor . | . . . . . . . Propulsion 35 | 2 . 2 . 4 14 13 Treads 5 | 2 . . . . . 3 Leg 21 | . . 2 . 2 10 7 Wheel . | . . . . . . . Hover . | . . . . . . . Flight 9 | . . . . 2 4 3 Utility 18 | 2 2 . . 1 11 2 Device 6 | 1 . . . . 4 1 Storage 5 | 1 1 . . . 3 . Processor 1 | . . . . . 1 . Hackware 2 | . 1 . . . 1 . Protection 4 | . . . . 1 2 1 Artifact . | . . . . . . . Weapon 20 | 2 1 2 . 1 7 7 Energy Gun 6 | . . 2 . . 4 . Energy Cannon 4 | . . . . . . 4 Ballistic Gun 4 | 2 . . . . 1 1 Ballistic Cannon 1 | . 1 . . . . . Launcher 2 | . . . . . 2 . Special Weapon . | . . . . . . . Impact Weapon . | . . . . . . . Slashing Weapon 3 | . . . . 1 . 2 Piercing Weapon . | . . . . . . . Special Melee Weapon . | . . . . . . . Unidentified Prototypes 2 | . . . . 1 1 . Parts Lost 26 | . 1 . . 3 6 16 Power 6 | . 1 . . 1 1 3 Propulsion 13 | . . . . 1 2 10 Utility 4 | . . . . 1 1 2 Weapon 3 | . . . . . 2 1 Highest Loss Streak 6 | . 1 . . 3 2 6 To Critical Strikes 1 | . . . . . 1 . Average Slot Usage (%) 95 | . 98 99 100 90 94 93 Engine 7 | . 12 14 14 11 4 . Core 3 | . . . . . 4 8 Treads 8 | . 28 8 . . . 4 Leg 19 | . . 19 28 26 28 22 Flight 2 | . . . . 1 6 3 Device 6 | . 2 . . . 9 16 Storage 11 | . 14 14 14 14 9 9 Processor 4 | . . . . . 8 9 Hackware 6 | . 11 14 14 8 . . Protection 2 | . . . . 4 7 1 Energy Gun 6 | . . 11 28 14 4 2 Energy Cannon 1 | . . . . . . 7 Ballistic Gun 6 | . 16 12 . . . 5 Ballistic Cannon 2 | . 11 3 . . . . Slashing Weapon 3 | . . . . 7 8 2 Naked Turns . | . . . . . . . Heaviest Build 44 | 9 28 36 36 37 43 44 Greatest Support 72 | 40 40 40 25 25 72 58 Greatest Overweight (x) 11 | . . 1 1 2 2 11 Average Overweight (x) . | . . . 1 1 . . Largest Inventory Capacity 15 | 8 15 15 15 15 15 15 Average Capacity 13 | 7 9 15 15 15 13 15 Most Carried 15 | 8 15 15 15 15 15 15 Average Carried 11 | 6 8 14 14 14 11 12 Final Capacity 15 | 8 15 15 15 15 15 15 Final Carried 15 | 8 15 15 15 15 13 15 Class Distribution -------------------- 48% | Scavenger-Mutant 48% | Mutant Dominant Class ---------------- Mutant | -10/Materials Scavenger-Mutant | -10/Mines Scavenger-Mutant | -10/Exiles Scavenger-Mutant | -9/Mines Mutant | -8/Materials Scavenger-Mutant | -8/Storage Resources | -11 -10 -10 -10 -9 -8 -8 ----------- Run | Yrd Mat Min Exi Min Mat Sto Matter Collected 1696 | 349 264 137 . 92 555 299 Remotely . | . . . . . . . Salvage Created 3331 | 194 404 123 . 336 1489 785 Parts 211 | 14 36 10 . 17 99 35 Haulers Intercepted 2 | . . . . . 2 . Recyclers Shooed 2 | 1 . . . . 1 . Parts Field Recycled . | . . . . . . . Retrieved Matter . | . . . . . . . Parts Self-Destructed . | . . . . . . . Prevented . | . . . . . . . Kills | -11 -10 -10 -10 -9 -8 -8 ------- Run | Yrd Mat Min Exi Min Mat Sto Combat Hostiles Destroyed 75 | . 14 6 . 6 31 18 Melee 34 | . . . . 6 20 8 Guns 10 | . 6 3 . . . 1 Cannons 20 | . 8 3 . . . 9 AOE 11 | . . . . . 11 . Classes Destroyed 13 | 3 5 . . 1 4 . Worker 9 | 2 . . . 1 5 1 Builder 5 | . 1 . . . 4 . Tunneler 6 | 4 . . . 1 1 . Hauler 2 | . . . . . 2 . Recycler 3 | 1 . . . 1 1 . Operator 3 | . 1 . . . 2 . Watcher 3 | . 1 . . . 2 . Swarmer 16 | . 5 4 . . 3 4 Grunt 43 | . 9 2 . 5 18 9 Duelist 1 | . . . . . 1 . Sentry 12 | . . . . . 7 5 Hunter 2 | . . . . . 2 . Assembled 1 | . . . . 1 . . Best Kill Streak 10 | 3 3 3 . 5 10 4 Combat Bots Only 7 | . 3 3 . 2 7 4 Max Kills in Single Turn 4 | 1 1 1 . 1 4 1 Gunslinging . | . . . . . . . Exploded 2 | . . . . . 2 . Melee 1 | . . . . 1 1 1 Uniques/NPCs Destroyed . | . . . . . . . Combat | -11 -10 -10 -10 -9 -8 -8 -------- Run | Yrd Mat Min Exi Min Mat Sto Hostile Shots Fired 409 | . 44 27 . 16 153 169 Missed 106 | . 9 4 . 4 49 40 Damage Taken 4619 | . 434 233 . 322 1484 2146 Core 770 | . 89 33 . 49 237 362 Absorbed by Shields 20 | . . . . . . 20 Redirected to Shielding 34 | . . . . 8 26 . Regen/Repaired (Parts) 95 | . . . . . 95 . Core Remaining (%) 65 | 100 . . . 31 . . Volleys Fired 123 | 27 34 12 . . 22 28 Largest 2 | 2 2 2 . . 1 2 Hottest 150 | 40 55 95 . . 75 150 Shots Fired 208 | 45 68 24 1 . 22 48 Gun 115 | 45 41 18 1 . 2 8 Cannon 73 | . 27 6 . . . 40 Launcher 20 | . . . . . 20 . Special . | . . . . . . . Kinetic 139 | 45 68 18 . . . 8 Thermal 49 | . . 6 1 . 2 40 Explosive 20 | . . . . . 20 . Electromagnetic . | . . . . . . . Robot Hit Streak 15 | 9 11 5 . . 3 15 Robot Miss Streak 7 | 2 7 4 . . 2 3 Penetration Max . | . . . . . . . Secondary Targets 1 | . 1 . . . . . Max Gunslinging Chain 1 | . 1 . . . . . Shots Hit Robots 216 | 25 43 14 . 15 60 59 Core Hits 130 | 9 23 8 . 7 60 23 Critical Kills 1 | . 1 . . . . . Critical Parts Destroyed 1 | 1 . . . . . . Critical Strikes 14 | 1 4 1 . 1 5 2 Destroy 2 | 1 1 . . . . . Blast 4 | . 3 1 . . . . Sever 8 | . . . . 1 5 2 Melee Attacks 162 | . . . . 35 79 48 Impact . | . . . . . . . Slashing 162 | . . . . 35 79 48 Piercing . | . . . . . . . Sneak Attacks 8 | . . . . 2 5 1 Combat Hostiles . | . . . . . . . Follow-up Attacks . | . . . . . . . Damage Inflicted 8663 | 333 565 257 . 789 4939 1780 Guns 874 | 333 292 149 . . 21 79 Cannons 1056 | . 262 69 . . . 725 Explosions 2281 | . . . . . 2281 . Melee 4385 | . . . . 789 2637 959 Ramming 67 | . 11 39 . . . 17 Kinetic 1142 | 333 554 176 . . . 79 Thermal 996 | . . 42 . . 229 725 Explosive 2073 | . . . . . 2073 . Electromagnetic . | . . . . . . . Impact . | . . . . . . . Slashing 4385 | . . . . 789 2637 959 Piercing . | . . . . . . . Highest Corruption 9 | . 1 1 1 9 . . Average Corruption 1 | . 1 1 1 4 . . Corruption Purged . | . . . . . . . Corruption Blocked . | . . . . . . . Effects 31 | . 6 6 3 16 . . Message Errors 8 | . 1 1 . 6 . . Matter Fused 6 | . 1 2 1 2 . . Heat Flow Errors 3 | . . 1 . 2 . . Energy Discharges 1 | . 1 . . . . . Parts Fused 1 | . . . . 1 . . Data Loss (minor) 6 | . 1 1 1 3 . . Data Loss (major) 1 | . . 1 . . . . Misfires 2 | . 1 . 1 . . . Alerts 2 | . . . . 2 . . Weapon Failures 1 | . 1 . . . . . Overload Shots . | . . . . . . . Overflow Damage 614 | . 3 . . 111 483 17 Projectiles 3 | . 3 . . . . . Explosions 175 | . . . . . 175 . Melee 436 | . . . . 111 308 17 Knockbacks 5 | . 4 1 . . . . Impact 1 | . 1 . . . . . Kinetic 4 | . 3 1 . . . . Secondary . | . . . . . . . Self-Inflicted Damage 86 | . . . . . 86 . Shots 3 | . . . . . 3 . Rammed 6 | . 4 2 . . . . Targets Rammed 13 | . 4 7 . . . 2 Kicked 7 | . . 5 . . . 2 Crushed . | . . . . . . . Highest Temperature 483 | . 10 279 16 264 26 483 Average Temperature 122 | . 4 145 12 105 7 152 Received Heat Transfer 1635 | . 153 36 . 100 477 869 Effects 4 | . . . . . . 4 Shutdowns 2 | . . . . . . 2 Interference 2 | . . . . . . 2 Siege Activations . | . . . . . . . Robots Corrupted . | . . . . . . . Combat Hostiles . | . . . . . . . Parts Fried . | . . . . . . . Impact Corruptions . | . . . . . . . Robots Melted . | . . . . . . . Combat Hostiles . | . . . . . . . Parts Melted 2 | . . . . . . 2 Heat Transferred 1334 | . . 74 . . 187 1073 Parts Sabotaged . | . . . . . . . Parts Stolen . | . . . . . . . Parts Stripped . | . . . . . . . Power Chain Reactions . | . . . . . . . Alert | -11 -10 -10 -10 -9 -8 -8 ------- Run | Yrd Mat Min Exi Min Mat Sto Peak Influence 941 | 35 213 283 . 134 941 389 Initial 359 | . 22 51 . . 52 359 Average 223 | 17 79 77 . 28 511 265 Maximum Alert Level 3 | . 1 1 . . 3 1 Low Security (%) 65 | 100 98 92 . 100 32 29 Level 1 19 | . 1 7 . . 4 70 Level 2 6 | . . . . . 24 . Level 3 9 | . . . . . 37 . Level 4 . | . . . . . . . Level 5 . | . . . . . . . High Security . | . . . . . . . Max Security . | . . . . . . . Squads Dispatched 13 | . 4 . . . 7 2 Investigation 4 | . 1 . . . 1 2 Extermination . | . . . . . . . Reinforcement 6 | . 3 . . . 3 . Assault . | . . . . . . . Garrison 3 | . . . . . 3 . Intercept . | . . . . . . . Searches Triggered . | . . . . . . . Construction Impeded 1 | . . . . . 1 . Haulers Reinforced . | . . . . . . . Active Scanning Responses . | . . . . . . . Cargo Convoy Interrupts . | . . . . . . . Stealth | -11 -10 -10 -10 -9 -8 -8 --------- Run | Yrd Mat Min Exi Min Mat Sto Distress Signals 16 | . 2 . . . 7 7 Communications Jammed . | . . . . . . . Distress Signals . | . . . . . . . Times Spotted 143 | . 35 11 . 7 56 34 Peak Tracking Total 7 | . 5 4 . 2 6 7 Tactical Retreats 24 | . 2 . . 1 9 12 Traps | -11 -10 -10 -10 -9 -8 -8 ------- Run | Yrd Mat Min Exi Min Mat Sto Traps Triggered 5 | . 3 . . . . 2 Indirectly . | . . . . . . . Trap Hack Attempts . | . . . . . . . Triggered . | . . . . . . . Disarmed . | . . . . . . . Reprogrammed . | . . . . . . . Reused . | . . . . . . . Traps Extracted . | . . . . . . . Installed . | . . . . . . . Triggered . | . . . . . . . Machines | -11 -10 -10 -10 -9 -8 -8 ---------- Run | Yrd Mat Min Exi Min Mat Sto Machines Disabled 6 | . . 2 . . 2 2 Max in Single Turn 2 | . . 1 . . 2 1 Machines Repaired . | . . . . . . . Machines Dismantled . | . . . . . . . Machines Sabotaged . | . . . . . . . Overloaded Fab Kills . | . . . . . . . Hacking | -11 -10 -10 -10 -9 -8 -8 --------- Run | Yrd Mat Min Exi Min Mat Sto Machines Accessed 16 | . 6 1 . 1 5 3 Terminals 11 | . 4 . . 1 4 2 Fabricators . | . . . . . . . Repair Stations 1 | . . . . . 1 . Recycling Units 3 | . 2 . . . . 1 Scanalyzers . | . . . . . . . Garrison Access . | . . . . . . . Total Hacks 29 | . 10 1 . 2 11 5 Successful 19 | . 5 1 . 1 8 4 Failed 10 | . 5 . . 1 3 1 Catastrophic 1 | . 1 . . . . . Database Lockouts . | . . . . . . . Manual 1 | . . . 1 . . . Terminals 22 | . 8 . . 2 8 4 Fabricators . | . . . . . . . Repair Stations 3 | . . . . . 3 . Recycling Units 3 | . 2 . . . . 1 Scanalyzers . | . . . . . . . Garrison Access . | . . . . . . . Terminal Hacks 14 | . 3 1 . 1 6 3 Open Door 1 | . . 1 . . . . Alert Level 4 | . . . . . 2 2 Locate Traps 1 | . 1 . . . . . Dispatch Records 3 | . 1 . . 1 1 . Maintenance Status 3 | . 1 . . . 1 1 Reinforcement Status 1 | . . . . . 1 . Recall Reinforcements 1 | . . . . . 1 . Fabricator Hacks . | . . . . . . . Repair Station Hacks 2 | . . . . . 2 . Scan Component 1 | . . . . . 1 . Repair 1 | . . . . . 1 . Recycling Unit Hacks 3 | . 2 . . . . 1 Report Inventory 3 | . 2 . . . . 1 Scanalyzer . | . . . . . . . Garrison Access Hacks . | . . . . . . . Unauthorized Hacks . | . . . . . . . Terminals . | . . . . . . . Fabricators . | . . . . . . . Repair Stations . | . . . . . . . Recycling Units . | . . . . . . . Scanalyzers . | . . . . . . . Garrison Access . | . . . . . . . Data Cores Recovered 1 | . . . . . 1 . Used . | . . . . . . . Hacking Detections 8 | . 3 . . . 4 1 Full Trace Events 3 | . . . . . 2 1 Feedback Events . | . . . . . . . Feedback Blocked . | . . . . . . . Robot Schematics Acquired . | . . . . . . . Robots Built . | . . . . . . . Authchips . | . . . . . . . Time . | . . . . . . . Total Robot Build Rating . | . . . . . . . Part Schematics Acquired . | . . . . . . . Parts Built . | . . . . . . . Authchips . | . . . . . . . Time . | . . . . . . . Total Part Build Rating . | . . . . . . . Parts Repaired 1 | . . . . . 1 . Time 44 | . . . . . 44 . Parts Recycled . | . . . . . . . Recycled Matter . | . . . . . . . Retrieved Matter . | . . . . . . . Retrieved Components . | . . . . . . . Parts Scanalyzed . | . . . . . . . Part Schematics Acquired . | . . . . . . . Parts Damaged . | . . . . . . . Bothacking | -11 -10 -10 -10 -9 -8 -8 ------------ Run | Yrd Mat Min Exi Min Mat Sto Used RIF Installer . | . . . . . . . Robots Hacked . | . . . . . . . Non-combat . | . . . . . . . Combat . | . . . . . . . Robot Hacks Applied . | . . . . . . . Relay Couplers Released . | . . . . . . . Fabnet Peak Effective % . | . . . . . . . Robots Rewired . | . . . . . . . Allies Hacked . | . . . . . . . Hacks Repelled . | . . . . . . . Allies | -11 -10 -10 -10 -9 -8 -8 -------- Run | Yrd Mat Min Exi Min Mat Sto Total Allies 2 | . . 2 . . . . Largest Group 2 | . . 2 1 . . . Highest-Rated Group 45 | . . 45 14 . . . Highest-Rated Ally 31 | . . 31 14 . . . Total Orders . | . . . . . . . Ally Attacks 13 | . . 13 . . . . Total Damage 192 | . . 192 . . . . Kills 3 | . . 3 . . . . Allies Corrupted . | . . . . . . . Allies Melted . | . . . . . . . Intel | -11 -10 -10 -10 -9 -8 -8 ------- Run | Yrd Mat Min Exi Min Mat Sto Robot Analysis Total . | . . . . . . . Derelict Logs Recovered 3 | . . 1 . 2 . . Drone Launches . | . . . . . . . Drone Recoveries . | . . . . . . . Exploration | -11 -10 -10 -10 -9 -8 -8 ------------- Run | Yrd Mat Min Exi Min Mat Sto Turns Passed 7157 | 253 1453 1086 396 690 1686 1593 Spaces Moved 3747 | 108 793 544 208 257 1125 712 Core 11 | 10 . . . . . 1 Treads 1217 | 98 793 166 . . . 160 Legs 2154 | . . 378 208 257 773 538 Wheels . | . . . . . . . Hover . | . . . . . . . Flight 365 | . . . . . 352 13 Fastest Speed 26 | 50 160 160 190 190 26 120 Average Speed 143 | 149 160 180 190 195 97 136 Slowest Speed 600 | 160 160 190 190 260 190 600 Overloaded Moves . | . . . . . . . Propulsion Burnouts . | . . . . . . . Robots Hopped . | . . . . . . . Cave-ins Triggered 2 | . . . . 1 . 1 Exploration Rate (%) 64 | 8 98 98 60 51 65 70 Regions Visited 6 Branch Regions 4 Pre-discovered Areas 2 | . . 1 . . . 1 Known Exits Taken 1 | . . . . . 1 . Unknown Exits Taken 5 | 1 1 1 1 1 . . Scrap Searched 3 | . . 2 . 1 . . Spaces Dug 81 | . . . . 6 65 10 Terrain Destroyed 251 | . . . . 6 226 19 Melee 38 | . . . . 6 22 10 Projectile 9 | . . . . . . 9 AOE 204 | . . . . . 204 . Terrain Rammed . | . . . . . . . Walls Destroyed . | . . . . . . . Machines Disabled . | . . . . . . . Actions | -11 -10 -10 -10 -9 -8 -8 --------- Run | Yrd Mat Min Exi Min Mat Sto Total 5115 | 160 911 618 210 410 1608 1198 Wait 859 | 5 54 39 . 106 307 348 Move 3740 | 107 792 543 207 256 1124 711 Hop . | . . . . . . . Pick Up 87 | 14 15 4 1 3 25 25 Fast Attach 9 | 1 . 2 . 1 5 . Attach 41 | 5 3 . . 2 12 19 Detach 5 | . . . . 1 3 1 Swap 37 | . 2 4 . 4 17 10 Drop 38 | 1 7 7 1 2 14 6 Fire 123 | 27 34 12 . . 22 28 Melee 162 | . . . . 35 79 48 Ram . | . . . . . . . Kick 7 | . . 5 . . . 2 Crush 6 | . 4 2 . . . . Escape Stasis . | . . . . . . . Rewire 1 | . . . 1 . . . Trap . | . . . . . . . Miscellaneous . | . . . . . . . Route ------- -11/Scrapyard -10/Materials (discovered 5 exits: [*Mat x3] / *Min x2) -10/Mines (discovered 4 exits: [*Mat x2] / *Exi / [*Sub]) -10/Exiles -9/Mines -8/Materials (discovered 4 exits: *Fac x2 / *Sto x2) -8/Storage History --------- Turn | Location | Event 9 | -11/Scrapyard | Discovered new exit (range 16) 254 | -11/Scrapyard | Entered Materials 312 | -10/Materials | Build established: Mutant 474 | -10/Materials | Discovered new exit (range 15) 791 | -10/Materials | Discovered new exit (range 6) 1075 | -10/Materials | Discovered new exit (range 7) 1129 | -10/Materials | Discovered new exit (range 8) 1303 | -10/Materials | Discovered new exit (range 16) 1707 | -10/Materials | Entered Mines 1709 | -10/Mines | Met a Derelict bent on vengeance 1732 | -10/Mines | Assembled infested the area 1737 | -10/Mines | Assisted by a Guerilla fighting off Assembled 1784 | -10/Mines | Discovered new exit (range 14) 1888 | -10/Mines | Discovered new exit (range 6) 2008 | -10/Mines | Learned location of Zion (-7) 2322 | -10/Mines | Found the Drone Emporium 2331 | -10/Mines | Found Prototype Device 2336 | -10/Mines | Build established: Scavenger-Mutant 2695 | -10/Mines | Discovered new exit (range 6) 2785 | -10/Mines | Deemed a non-threat by the Exiles lab entrance 2785 | -10/Mines | Discovered new exit (range 5) 2793 | -10/Mines | Entered Exiles 2793 | -10/Exiles | Accompanied by 1 ally 2837 | -10/Exiles | Met 8R-AWN 2871 | -10/Exiles | Met EX-HEX 2931 | -10/Exiles | Met EX-BIN 2952 | -10/Exiles | Aligned with FarCom system 2954 | -10/Exiles | Given EX-Vault access code 2998 | -10/Exiles | Opened EX-Vault 3010 | -10/Exiles | Found Prototype Slashing Weapon 3051 | -10/Exiles | Warned to stay clear of 0b10 Research branches 3104 | -10/Exiles | Met EX-DEC 3168 | -10/Exiles | Discovered new exit (range 14) 3189 | -10/Exiles | Left Exiles lab with Longsword +1 3189 | -10/Exiles | Entered Mines 3488 | -9/Mines | Excavation squad dispatched 3488 | -9/Mines | A large section of the Mines collapsed 3489 | -9/Mines | Identified Longsword +1 3514 | -9/Mines | Learned location of 1 exit from Materials 3516 | -9/Mines | Learned location of 1 exit from Materials 3595 | -9/Mines | Crushed by falling debris 3626 | -9/Mines | Lost 3 parts (1p1n1u) 3656 | -9/Mines | Core integrity fell below 50% 3738 | -9/Mines | Excavation squad dispatched 3856 | -9/Mines | Discovered new exit (range 13) 3879 | -9/Mines | Entered Materials 3879 | -8/Materials | Evolved 4 slots: Propulsion x2, Utility x2 3880 | -8/Materials | Identified exit to Factory 3880 | -8/Materials | Identified exit to Storage 3888 | -8/Materials | Identified Bomb Drone Bay 3923 | -8/Materials | Build established: Mutant 3949 | -8/Materials | Discovered exit to Storage (range 7) 4598 | -8/Materials | Destroyed 7 combat bots 4769 | -8/Materials | Repaired Imp. Carbon-fiber Leg 5083 | -8/Materials | Garrison activated, responded to threat 5131 | -8/Materials | Discovered exit to Factory (range 18) 5394 | -8/Materials | Build established: Scavenger-Mutant 5565 | -8/Materials | Entered Storage 6157 | -8/Storage | Lost 3 parts (1p2n) 6312 | -8/Storage | Core integrity fell below 50% 6595 | -8/Storage | Learned location of Armory (-3) 6737 | -8/Storage | Lost 6 parts (1p5n) 6900 | -8/Storage | Core integrity fell below 20% 7158 | -8/Storage | Crushed by falling debris 7158 | -8/Storage | Smashed by cave-in Last Messages --------------- Acquired Com. Matter Pod. U-05 Engineer builds a Wall. Y-45 Defender Lgt. Treads severed. Critical hit (Burn: +37). Y-45 Defender destroyed. Lgt. Nuclear Core destroyed. G-47 Trooper destroyed. Acquired Aluminum Leg. Acquired 10 matter. Dropped Aluminum Leg. Acquired Aluminum Leg. Acquired 10 matter. Acquired Aluminum Leg. The unstable cave ceiling collapses. Crushed by falling debris. ECM Suite destroyed. System corrupted by crushing effect (+5). Axe destroyed. System corrupted by crushing effect (+2). [Achievement: 5k Club] Map ----- +----------------------------------------------------+ | ?????????????????????????????????????????????????? | | ?????????????????????????????????????????????????? | | ?????????????????????????????????????????????????? | | ?????????????????????????????????????????????????? | | ?????????????????????????????????????????????????? | | ?????????????????????????????????????????????????? | | ?????????????????????????????????????????????????? | | ?????????????????????????????????????????????????? | | ?????????????????????????????????????????????????? | | ???????????????????????????????????????????????""" | | ??????????????????????????????????????????????## | | ??????????????????????????????????????????????#T | | ??????????????????????????????????????????????## | | ??????????????????????Y????????????????????????# | | ???????????????????????????????????############# | | ?????????????????????? ????????????# " + | | ?????????????????#####a#####???????### " "" # | | ?????????????????# #?????????# "" ]" # | | ?????????????????# #?????????# """ " # | | ?????????????????# """ """ #?????????# " """ + | | ?????????????????# """ """ #???????### "% "" # | | ?????????????????# """ """!##??????# " """" # | | ?????????????????# *%=#??????### # | | ?????????????????# [#######??#"########## | | ?????????????????# = %[%# # "##?##" ##### | | ?????????????????########@####### ###"# | | ????????????????????????# # ## % | | ????????????????#####???# # "## ##### # | | ????#########???#===#???###% ! T### ##???# # | | ????# ?"" ????#===#???## % "#?# #?####+# | | ?#### ?T" ???##"*"#???### #?# #?# | | ?? + ? ????#T %%#????## #?# #?# """ | | ??# # ? ??#####/##########/########## g### "?"" | | ??# ##+##+#### ! * # "??? | | ??# =%% + "??? | | ### #### % ! # """" | | # "" "########+#########+##+########## # " | | # T" T#?## ?? ??# %[ #????????# # | | # "" "#??? ??" """?#% """" #????????# # | | !# ##??? ?"" """ #*"!!!" #?Y??????# ###### | | / #???? ?"" """ #%""""" #??????### ###### | | #"#####+#???? """ """ #![""""" #??????+ | | ### ??????????? """ """?# []!" #??????###+#### | | ??# ??????????? ? ???# """"" #??????? ?# | | ??# ??????????? ? ???# #??????# # | | ??#??????????########???# #??????# # | | ##########???# %!#???######+###??????# # | | #???#] #????????# #???##+### # | | ! #???#* ########## ##### ######### | | ! [ #???#! + = * | +----------------------------------------------------+ Best States ------------- Heat Dissipation 45 Energy Generation 18 Energy Capacity 350 Matter Stores 300 Matter Capacity 300 Sight Range 18 Terrain Scan Range 16 Terrain Scan Density 10 ECM Strength 1 Armor Coverage 225 Core Shielding 20 Evasion (%) 64 Recoil Reduction 2 Offensive Hacking 10 Item Schematics ----------------- None Robot Schematics ------------------ None Fabricated ------------ Nothing Alien Tech Used ----------------- None Achievements -------------- 5k Club I Survived The Infestation Part-time Excavator Risk Taker Unlikely Earthworm Challenges ------------ None Game ------ Seed AblativeArcSegregator Manual? 0 Play Time 01:45:40 Cumulative 6.1 hours Start 2024.04.05 @ 19:32:49 End 2024.04.06 @ 00:36:48 Sessions 3 Manual Loads 0 Difficulty Rogue Special Mode None Game No. 7 Rogue 7 Adventurer 0 Explorer 0 Win Type - Total 0 Types 0/0/0/0/0/0/0/0/0 Lore% 10 Gallery% 7 Achievement% 8 Wizard Run 0 Options --------- Layout 0 ASCII 0 Keyboard 0 Movement Numpad Keybinds 0 Fullscreen 1 Font 18/SmallcapsGlow Map View 38x25 Zoom Use 95% Tactical HUD 0 Map Filters NONE Filters NONE Steam 1 RUN: 0e6afa27-b873-40ef-aa5e-23f739d76d16